bitfinex/quotes_SOLUSD_20250206
["timestamp","ask_amount","ask_price","bid_price","bid_amount"]
[1738862465888,9.788e-05,189.69,189.64,31.36966241]
[1738862466196,9.788e-05,189.69,189.66,0.12549]
[1738862466699,9.788e-05,189.69,189.67,5.2723]
[1738862467616,9.788e-05,189.69,189.68,45.03249094]
[1738862467914,9.788e-05,189.69,189.68,45.15798094]
[1738862468203,9.788e-05,189.7,189.69,45.15798094]
[1738862468392,9.788e-05,189.7,189.69,45.94830132]
[1738862468898,9.788e-05,189.7,189.69,51.22000132]
[1738862470474,0.063,189.78,189.74,0.12549]
[1738862470679,0.063,189.78,189.75,31.24417241]
[1738862471403,0.063,189.78,189.75,13.78831853]
[1738862471598,0.063,189.78,189.77,0.25098]
[1738862471906,0.063,189.78,189.77,45.82264573]
[1738862472682,0.063,189.78,189.77,51.21763573]
[1738862473083,0.17459755,189.78,189.77,51.21763573]
[1738862473981,0.17459755,189.78,189.77,19.84797332]
[1738862474203,0.17459755,189.78,189.77,51.09214573]
[1738862474382,0.17459755,189.78,189.77,19.84797332]
[1738862474901,0.17459755,189.78,189.77,51.09214573]
[1738862475204,0.17459755,189.78,189.77,51.21763573]
[1738862476306,0.17459755,189.78,189.72,31.24417241]
[1738862476502,0.17459755,189.78,189.73,5.2706]
[1738862476801,0.70149755,189.78,189.7,5.2714]
[1738862477004,2.01879755,189.78,189.64,32.03471985]
[1738862477196,0.70149755,189.78,189.65,49.69907241]
[1738862477402,0.70149755,189.78,189.66,0.37647]
[1738862477590,0.70149755,189.78,189.66,0.12549]
[1738862478001,0.70149755,189.78,189.66,13.78831853]
[1738862478401,0.70149755,189.78,189.67,5.2723]
[1738862478792,0.70149755,189.78,189.68,13.53733853]
[1738862478996,0.70149755,189.78,189.7,0.12549]
[1738862478997,0.17459755,189.78,189.7,0.12549]
[1738862479192,31.22842601,189.76,189.7,0.12549]
[1738862479413,31.22842601,189.77,189.71,13.41184853]
[1738862480197,31.22842601,189.74,189.71,18.68294853]
[1738862481210,31.22842601,189.75,189.71,18.68294853]
[1738862481512,0.17459755,189.78,189.71,18.68294853]
[1738862481513,31.40302356,189.78,189.72,0.12549]
[1738862482008,31.22842601,189.75,189.71,18.68294853]
[1738862482208,31.22842601,189.76,189.72,0.12549]
[1738862482522,0.17459755,189.78,189.74,0.12549]
[1738862482815,0.17459755,189.78,189.76,13.53733853]
[1738862484115,0.17459755,189.78,189.77,5.2695]
[1738862484807,0.17459755,189.78,189.77,18.80683853]
[1738862485120,0.17459755,189.78,189.77,19.05781853]
[1738862485421,9.755e-05,189.78,189.77,38.38867811]
[1738862485594,5.441e-05,189.79,189.78,13.91380853]
[1738862485799,9.518e-05,189.81,189.8,33.78831853]
[1738862486107,9.518e-05,189.81,189.8,53.78361885]
[1738862486411,9.518e-05,189.81,189.8,59.05231885]
[1738862486631,4.079e-05,189.82,189.81,13.91380853]
[1738862486913,2.645e-05,189.83,189.82,13.78831853]
[1738862487115,2.645e-05,189.83,189.82,33.78354981]
[1738862487493,5.226e-05,189.85,189.84,13.78831853]
[1738862487701,5.226e-05,189.85,189.84,33.78345019]
[1738862488319,5.226e-05,189.85,189.84,18.67934853]
[1738862488712,5.226e-05,189.85,189.84,18.93032853]
[1738862488897,5.226e-05,189.85,189.84,19.05581853]
[1738862489097,5.226e-05,189.85,189.84,19.18130853]
[1738862490624,5.226e-05,189.85,189.84,5.2675]
[1738862491003,5.226e-05,189.85,189.84,5.51848]
[1738862491197,5.226e-05,189.85,189.84,24.97482958]
[1738862491513,5.226e-05,189.85,189.8,13.1717]
[1738862491715,5.226e-05,189.85,189.81,5.2684]
[1738862492099,5.226e-05,189.85,189.78,5.2692]
[1738862492341,5.226e-05,189.85,189.7,5.2714]
[1738862492342,1.6436,189.84,189.7,5.2714]
[1738862492505,19.20536958,189.79,189.75,20.0]
[1738862492709,19.20536958,189.8,189.77,5.2695]
[1738862492929,19.20536958,189.79,189.75,25.2698]
[1738862493238,0.1106067,189.78,189.75,25.2698]
[1738862497329,19.31597628,189.78,189.75,25.2698]
[1738862497632,19.31597628,189.78,189.75,5.2698]
[1738862498040,19.20536958,189.77,189.7,19.99566775]
[1738862498210,19.20536958,189.74,189.71,5.2712]
[1738862498930,19.20536958,189.75,189.72,13.66282853]
[1738862499228,19.20536958,189.76,189.72,13.66282853]
[1738862499645,19.20536958,189.76,189.73,5.2706]
[1738862500336,19.20536958,189.75,189.72,13.66282853]
[1738862500530,19.20536958,189.76,189.72,18.93362853]
[1738862502029,19.20536958,189.77,189.72,18.93362853]
[1738862503049,19.20536958,189.75,189.72,18.93362853]
[1738862503537,19.20536958,189.74,189.72,18.93362853]
[1738862504347,19.31597628,189.78,189.72,18.93362853]
[1738862504645,19.20536958,189.76,189.72,18.93362853]
[1738862506220,0.1106067,189.78,189.73,19.45634958]
[1738862507837,0.1106067,189.78,189.77,53.11917811]
[1738862508021,0.1106067,189.78,189.77,53.90926427]
[1738862509252,0.1106067,189.78,189.77,13.66282853]
[1738862509455,19.31597628,189.78,189.75,5.27]
[1738862509753,19.31597628,189.78,189.73,0.03]
[1738862509945,0.1106067,189.78,189.73,13.94380853]
[1738862510421,0.1106067,189.78,189.73,33.93947783]
[1738862510620,0.1106067,189.78,189.77,33.11917811]
[1738862510923,6.7e-06,189.78,189.77,33.11917811]
[1738862511343,1.407e-05,189.79,189.78,0.12549]
[1738862511542,7.09e-06,189.8,189.79,33.91380853]
[1738862511730,7.09e-06,189.8,189.79,53.11917811]
[1738862512426,0.11078313,189.81,189.79,59.17804271]
[1738862512427,9.022e-05,189.81,189.79,59.17804271]
[1738862512623,0.10518334,189.83,189.82,33.91380853]
[1738862512624,6.473e-05,189.83,189.82,33.91380853]
[1738862512945,9.747e-05,189.86,189.85,13.91380853]
[1738862513249,0.10654632,189.86,189.85,33.90887133]
[1738862513428,0.21270829,189.87,189.86,13.41184853]
[1738862513429,5.461e-05,189.87,189.86,13.41184853]
[1738862513628,5.461e-05,189.87,189.86,33.11917811]
[1738862514432,5.461e-05,189.87,189.86,13.78831853]
[1738862514632,5.461e-05,189.87,189.86,19.05531853]
[1738862517825,5.461e-05,189.87,189.86,39.17600274]
[1738862518230,5.461e-05,189.87,189.86,19.05531853]
[1738862520259,5.461e-05,189.87,189.86,38.26068811]
[1738862520753,0.06305461,189.87,189.86,38.26068811]
[1738862520947,0.06305461,189.87,189.86,18.92982853]
[1738862521158,19.26842419,189.87,189.86,18.92982853]
[1738862521350,19.26842419,189.87,189.79,13.1723]
[1738862521554,0.06305461,189.87,189.84,19.20536958]
[1738862522072,0.06305461,189.87,189.85,33.11917811]
[1738862522358,0.06305461,189.87,189.85,13.91380853]
[1738862522540,0.06305461,189.87,189.85,13.78831853]
[1738862522734,19.20536958,189.86,189.84,20.0]
[1738862522987,19.20536958,189.85,189.8,18.4404]
[1738862523133,0.06305461,189.87,189.8,5.2687]
[1738862523134,19.20536958,189.82,189.8,5.2687]
[1738862523334,19.20536958,189.81,189.78,5.2692]
[1738862523535,19.20536958,189.82,189.78,5.2692]
[1738862523759,19.20536958,189.82,189.79,13.66282853]
[1738862523936,19.20536958,189.8,189.78,5.2692]
[1738862524139,19.20536958,189.8,189.75,5.27]
[1738862524433,19.20536958,189.81,189.78,20.0]
[1738862524640,19.20536958,189.8,189.76,13.66282853]
[1738862524858,10.17966669,189.87,189.75,5.27]
[1738862525059,19.20536958,189.77,189.73,0.03]
[1738862525946,19.20536958,189.79,189.73,0.03]
[1738862526249,19.20536958,189.85,189.79,0.37647]
[1738862526446,6.41875461,189.87,189.81,32.86819811]
[1738862526447,0.06305461,189.87,189.81,32.86819811]
[1738862526760,0.06305461,189.87,189.82,0.12549]
[1738862527643,19.26842419,189.87,189.82,0.12549]
[1738862528163,19.26842419,189.87,189.83,5.2678]
[1738862528360,0.06305461,189.87,189.83,5.2678]
[1738862528870,0.06305461,189.87,189.84,13.66282853]
[1738862529040,0.06305461,189.87,189.86,53.11917811]
[1738862529243,0.06305461,189.87,189.86,53.90894906]
[1738862529447,0.06305461,189.87,189.86,53.11917811]
[1738862529640,0.06305461,189.87,189.86,33.78831853]
[1738862529845,0.06305461,189.87,189.85,19.20536958]
[1738862529846,0.06305461,189.87,189.83,5.2678]
[1738862530044,0.06305461,189.87,189.81,0.78998525]
[1738862530241,0.06305461,189.87,189.82,19.18190853]
[1738862530655,0.06305461,189.87,189.86,13.78831853]
[1738862530880,0.06305461,189.87,189.86,13.66282853]
[1738862531975,0.06305461,189.87,189.86,18.92982853]
[1738862532751,5.461e-05,189.87,189.86,39.17603935]
[1738862532975,7.764e-05,189.88,189.87,13.91380853]
[1738862533307,1.062e-05,189.89,189.88,13.41184853]
[1738862533586,1.062e-05,189.89,189.88,33.90874594]
[1738862534344,1.062e-05,189.89,189.88,39.17514594]
[1738862534883,1.062e-05,189.89,189.88,19.96977636]
[1738862535050,1.062e-05,189.89,189.88,19.18020853]
[1738862535250,1.062e-05,189.89,189.88,39.17526269]
[1738862537776,1.062e-05,189.89,189.88,19.96989311]
[1738862537981,1.062e-05,189.89,189.88,19.05471853]
[1738862542481,1.062e-05,189.89,189.85,0.03]
[1738862542781,19.20536958,189.86,189.85,5.2972]
[1738862542968,1.062e-05,189.89,189.85,24.50256958]
[1738862543174,1.062e-05,189.89,189.86,13.78831853]
[1738862544282,19.20536958,189.87,189.85,5.2972]
[1738862544485,19.20536958,189.87,189.85,0.03]
[1738862545098,1.062e-05,189.89,189.85,0.03]
[1738862545099,19.20536958,189.86,189.85,0.03]
[1738862546274,19.20536958,189.87,189.85,0.03]
[1738862546582,0.06301062,189.89,189.87,13.41184853]
[1738862548462,19.20536958,189.88,189.85,0.03]
[1738862548794,19.20536958,189.86,189.85,0.03]
[1738862549088,0.06301062,189.89,189.85,18.96002853]
[1738862549295,0.06301062,189.89,189.87,13.66282853]
[1738862550267,0.06301062,189.89,189.87,5.2665]
[1738862550472,19.20536958,189.88,189.85,0.03]
[1738862550796,19.20536958,189.86,189.85,0.03]
[1738862550981,0.06301062,189.89,189.85,5.2972]
[1738862551182,0.06301062,189.89,189.85,18.70904853]
[1738862551388,0.06301062,189.89,189.86,13.66282853]
[1738862551587,0.06301062,189.89,189.85,5.2972]
[1738862551883,19.20536958,189.88,189.85,5.2972]
[1738862552066,19.20536958,189.87,189.85,0.03]
[1738862552266,19.20536958,189.86,189.85,0.03]
[1738862553068,19.31611244,189.86,189.85,0.03]
[1738862553274,0.11074286,189.86,189.85,0.03]
[1738862553880,0.11074286,189.86,189.85,33.14917811]
[1738862554395,0.11074286,189.86,189.85,38.41647811]
[1738862555000,0.10717236,189.87,189.85,38.41647811]
[1738862555001,1.522e-05,189.87,189.86,13.91380853]
[1738862555172,8.023e-05,189.88,189.87,13.91380853]
[1738862555369,8.023e-05,189.88,189.87,33.11917811]
[1738862556788,1.232e-05,189.89,189.88,13.66282853]
[1738862557007,1.232e-05,189.89,189.88,14.70338971]
[1738862557368,1.031e-05,189.9,189.89,0.50196]
[1738862557570,4.495e-05,189.92,189.91,33.91380853]
[1738862557769,4.495e-05,189.92,189.91,53.90862722]
[1738862557973,7.428e-05,189.94,189.93,13.91380853]
[1738862558178,7.428e-05,189.94,189.93,33.90854008]
[1738862558510,5.078e-05,189.95,189.94,13.91380853]
[1738862558792,5.078e-05,189.97,189.96,33.91380853]
[1738862559007,5.078e-05,189.97,189.96,59.17258269]
[1738862559188,0.063,190.03,190.01,0.50196]
[1738862559505,0.063,190.03,190.02,13.41184853]
[1738862559877,0.063,190.03,190.02,13.91380853]
[1738862560686,0.063,190.03,190.02,19.17640853]
[1738862563602,0.063,190.03,190.02,38.38177811]
[1738862564498,0.063,190.03,190.02,39.17092863]
[1738862565417,0.063,190.04,190.03,0.37647]
[1738862565576,0.063,190.08,190.03,0.37647]
[1738862565577,0.063,190.08,190.04,13.53733853]
[1738862565781,0.063,190.08,190.07,19.20536958]
[1738862565980,0.063,190.08,190.06,19.20536958]
[1738862566210,0.063,190.08,190.07,19.20536958]
[1738862567072,0.063,190.08,190.07,5.2612]
[1738862567275,0.063,190.08,190.07,18.67304853]
[1738862567676,0.063,190.08,190.07,18.79853853]
[1738862568102,19.26836958,190.08,190.05,5.2617]
[1738862568281,0.063,190.08,190.05,5.2617]
[1738862569190,19.26836958,190.08,190.05,5.2617]
[1738862569381,19.20536958,190.07,190.04,18.79933853]
[1738862569785,0.063,190.08,190.04,18.79933853]
[1738862570678,0.063,190.08,190.07,19.33085958]
[1738862570893,0.063,190.08,190.07,33.11917811]
[1738862571101,0.063,190.08,190.07,13.53733853]
[1738862571782,0.063,190.08,190.02,19.20536958]
[1738862572102,19.26836958,190.08,190.03,5.2623]
[1738862572982,19.26836958,190.08,190.05,20.0]
[1738862573188,0.09627465,190.04,189.99,5.2634]
[1738862573497,0.09627465,190.04,190.0,33.11917811]
[1738862573677,0.09627465,190.04,190.03,0.12549]
[1738862573996,0.09627465,190.04,190.0,13.41184853]
[1738862574307,0.09627465,190.04,190.01,0.12549]
[1738862574603,0.09627465,190.04,190.01,19.70732958]
[1738862574788,0.09627465,190.04,190.01,0.50196]
[1738862574989,0.09627465,190.04,190.03,0.12549]
[1738862577279,0.09627465,190.04,190.03,18.79963853]
[1738862578581,0.09627465,190.04,189.99,5.2634]
[1738862579623,0.09627465,190.04,190.02,20.0]
[1738862580610,0.09627465,190.04,190.03,13.53733853]
[1738862580787,0.09627465,190.04,190.01,20.0]
[1738862580983,0.09627465,190.04,190.03,0.063]
[1738862581587,19.30164423,190.04,190.03,0.063]
[1738862581896,19.82784423,190.04,190.03,0.063]
[1738862582380,20.74555631,190.04,190.03,0.063]
[1738862582583,19.82784423,190.04,190.03,0.063]
[1738862585827,19.30164423,190.04,190.03,0.063]
[1738862586710,19.82784423,190.04,190.03,0.063]
[1738862586906,0.09627465,190.04,190.03,0.063]
[1738862587694,0.09627465,190.04,190.03,13.60033853]
[1738862588086,0.09627465,190.04,190.03,0.56496]
[1738862588413,0.09627465,190.04,190.03,19.77032958]
[1738862588904,0.09627465,190.04,190.03,25.03262958]
[1738862589811,7.465e-05,190.04,190.03,39.23359406]
[1738862590021,2.17e-06,190.06,190.04,13.91380853]
[1738862590229,2.17e-06,190.06,190.05,33.90807732]
[1738862591287,2.17e-06,190.06,190.05,39.16977732]
[1738862591790,0.1037951,190.07,190.05,39.16977732]
[1738862591995,1.6493,190.21,190.1,0.50196]
[1738862592191,1.6493,190.21,190.18,19.20536958]
[1738862592696,0.03,190.23,190.18,19.20536958]
[1738862592891,0.03,190.23,190.19,13.53733853]
[1738862593220,0.10152228,190.2,190.19,13.33733853]
[1738862593512,0.10152228,190.2,190.19,38.17697811]
[1738862595431,0.10152228,190.2,190.19,18.97160853]
[1738862595597,0.10152228,190.2,190.19,19.09709853]
[1738862595929,0.10152228,190.2,190.19,13.33733853]
[1738862596904,0.10152228,190.2,190.19,19.09709853]
[1738862597494,0.10152228,190.2,190.19,38.30246811]
[1738862597993,0.10152228,190.2,190.19,39.09081954]
[1738862599004,0.10152228,190.2,190.19,38.30246811]
[1738862599396,0.10152228,190.2,190.19,39.09080246]
[1738862600285,0.10152228,190.2,190.19,38.30246811]
[1738862603020,0.10152228,190.2,190.19,19.09709853]
[1738862603215,0.10152228,190.2,190.19,13.58831853]
[1738862603491,0.10152228,190.2,190.14,19.20536958]
[1738862603717,0.10152228,190.2,190.14,25.25320358]
[1738862603897,0.10152228,190.2,190.19,0.063]
[1738862604108,0.13152228,190.2,190.19,0.063]
[1738862607740,0.13152228,190.2,190.19,33.18217811]
[1738862607934,0.13152228,190.2,190.19,13.97680853]
[1738862608216,0.13152228,190.2,190.19,33.18217811]
[1738862608520,0.13152228,190.2,190.19,13.97680853]
[1738862609016,0.13152228,190.2,190.19,19.23460853]
[1738862610217,0.13152228,190.2,190.19,18.98362853]
[1738862610614,0.13152228,190.2,190.19,5.3208]
[1738862610930,0.13152228,190.2,190.19,0.063]
[1738862612818,0.13152228,190.2,190.19,18.98362853]
[1738862613024,0.13152228,190.2,190.19,32.26280545]
[1738862613224,0.23764213,190.2,190.19,32.26280545]
[1738862613427,0.23764213,190.2,190.19,18.98362853]
[1738862613608,0.23764213,190.2,190.19,20.063]
[1738862613927,0.13611985,190.2,190.19,0.063]
[1738862614713,0.13611985,190.2,190.19,19.23460853]
[1738862615116,0.13611985,190.2,190.19,32.51378545]
[1738862615310,0.13611985,190.2,190.19,33.302221]
[1738862616300,0.13611985,190.2,190.19,32.51378545]
[1738862618438,0.13611985,190.2,190.19,19.23460853]
[1738862619811,0.13611985,190.2,190.19,32.51378545]
[1738862620132,0.13611985,190.2,190.19,19.23460853]
[1738862621734,0.13611985,190.2,190.19,32.51378545]
[1738862622030,0.13611985,190.2,190.19,19.23460853]
[1738862623109,0.13611985,190.2,190.19,18.73264853]
[1738862623305,0.13611985,190.2,190.19,0.063]
[1738862623923,13.41529677,190.2,190.19,0.063]
[1738862625739,0.13611985,190.2,190.19,0.063]
[1738862626229,0.13611985,190.2,190.19,0.56496]
[1738862626537,0.13611985,190.2,190.19,28.04445387]
[1738862627922,0.13611985,190.2,190.19,33.30225387]
[1738862628238,1.985e-05,190.2,190.19,33.30225387]
[1738862629216,0.02059621,190.25,190.23,20.0]
[1738862629621,0.02059621,190.25,190.24,13.41184853]
[1738862630351,0.02059621,190.25,190.24,32.44948545]
[1738862632335,5.953e-05,190.28,190.27,33.91380853]
[1738862632542,5.953e-05,190.28,190.27,53.23652074]
[1738862632715,5.953e-05,190.28,190.27,190.43652074]
[1738862632920,8.936e-05,190.29,190.28,13.91380853]
[1738862633123,7.931e-05,190.29,190.28,164.39298545]
[1738862633322,1.147e-05,190.3,190.28,164.39298545]
[1738862633529,8.533e-05,190.31,190.3,0.50196]
[1738862633734,8.533e-05,190.31,190.3,27.19298545]
[1738862634246,8.533e-05,190.31,190.3,27.98087296]
[1738862634931,8.533e-05,190.31,190.3,33.23567296]
[1738862635825,8.533e-05,190.31,190.3,19.16860853]
[1738862636219,8.533e-05,190.31,190.3,33.23578239]
[1738862636632,0.09959126,190.35,190.33,13.41184853]
[1738862636823,0.09959126,190.35,190.33,19.95553621]
[1738862637223,0.09959126,190.35,190.33,33.23471313]
[1738862638650,0.09959126,190.35,190.33,41.15422633]
[1738862639146,9.254e-05,190.34,190.33,178.35422633]
[1738862639347,9.254e-05,190.34,190.33,177.56649865]
[1738862640636,9.254e-05,190.34,190.33,40.36649865]
[1738862640833,9.254e-05,190.34,190.3,21.19869012]
[1738862641045,9.254e-05,190.34,190.33,5.254]
[1738862641630,9.254e-05,190.34,190.33,18.66584853]
[1738862641824,9.254e-05,190.34,190.33,5.254]
[1738862642026,9.254e-05,190.34,190.29,5.2551]
[1738862642256,22.82469012,190.33,190.27,26.45409012]
[1738862642434,1.626,190.33,190.31,0.25098]
[1738862642629,9.254e-05,190.34,190.32,0.25098]
[1738862642953,9.254e-05,190.34,190.32,13.66282853]
[1738862643248,9.254e-05,190.34,190.33,5.254]
[1738862643451,9.254e-05,190.34,190.33,40.36649865]
[1738862644736,8.38e-05,190.35,190.34,13.91380853]
[1738862644941,8.38e-05,190.35,190.34,35.90020403]
[1738862645342,8.38e-05,190.35,190.34,41.15390403]
[1738862646758,4.21e-06,190.36,190.34,41.15390403]
[1738862646961,2.77e-05,190.37,190.36,33.91380853]
[1738862647255,2.77e-05,190.4,190.39,33.91380853]
[1738862647562,2.77e-05,190.4,190.39,55.90000404]
[1738862648331,2.77e-05,190.4,190.39,55.11249865]
[1738862648553,2.77e-05,190.4,190.39,60.36479865]
[1738862650167,0.0001,190.43,190.42,21.19869012]
[1738862650335,0.0001,190.43,190.42,21.98608011]
[1738862650756,0.0001,190.43,190.42,27.23758011]
[1738862650942,0.0001,190.43,190.42,5.2515]
[1738862651145,0.0001,190.43,190.4,5.2521]
[1738862651361,0.0001,190.43,190.42,33.41184853]
[1738862651567,0.2,192.43,190.42,33.41184853]
[1738862651568,0.063,190.53,190.49,0.50196]
[1738862651857,0.03,190.55,190.49,0.50196]
[1738862651858,0.03,190.55,190.53,20.0]
[1738862652059,0.03,190.55,190.54,35.11249865]
[1738862652638,0.03,190.55,190.54,40.36069865]
[1738862653260,0.1261233,190.55,190.54,40.36069865]
[1738862653437,0.1261233,190.55,190.54,41.14766952]
[1738862654457,0.1261233,190.55,190.54,40.36069865]
[1738862654859,0.1261233,190.55,190.54,18.66004853]
[1738862655270,0.1261233,190.55,190.54,20.0]
[1738862656258,0.1261233,190.55,190.54,33.41184853]
[1738862656859,0.1261233,190.55,190.54,38.66004853]
[1738862658656,0.1261233,190.55,190.52,5.2485]
[1738862658861,21.19869012,190.54,190.49,5.2496]
[1738862659165,21.19869012,190.54,190.5,13.91380853]
[1738862659356,1.7826233,190.55,190.5,35.11249865]
[1738862660769,1.7826233,190.55,190.5,13.91380853]
[1738862661065,1.7826233,190.55,190.52,13.41184853]
[1738862661280,1.7826233,190.55,190.53,0.063]
[1738862662465,0.1261233,190.55,190.54,13.41184853]
[1738862663051,0.1261233,190.55,190.54,18.66004853]
[1738862663256,0.1261233,190.55,190.54,19.16200853]
[1738862663461,0.1261233,190.55,190.54,40.36069865]
[1738862663744,2.33e-05,190.55,190.54,41.14768271]
[1738862663942,4.187e-05,190.56,190.55,13.91380853]
[1738862664152,4.187e-05,190.56,190.55,35.11249865]
[1738862664567,1.37e-06,190.57,190.56,13.91380853]
[1738862664871,1.37e-06,190.57,190.56,35.8993141]
[1738862665068,1.37e-06,190.57,190.56,41.1469141]
[1738862665963,1.37e-06,190.57,190.56,40.36009865]
[1738862668176,1.37e-06,190.57,190.56,18.65944853]
[1738862669969,1.37e-06,190.57,190.56,40.36009865]
[1738862670760,5.747e-05,190.58,190.57,13.91380853]
[1738862670954,5.747e-05,190.58,190.57,35.89933477]
[1738862672399,5.747e-05,190.58,190.57,40.35989865]
[1738862672971,0.03005747,190.58,190.57,40.35989865]
[1738862673181,0.12469927,190.58,190.57,40.35989865]
[1738862673890,0.1246418,190.58,190.57,40.35989865]
[1738862676095,0.1246418,190.58,190.57,19.16120853]
[1738862677266,0.1246418,190.58,190.57,18.65924853]
[1738862677473,0.1246418,190.58,190.57,5.2474]
[1738862677670,1.5056,190.57,190.53,0.063]
[1738862677972,21.19869012,190.56,190.53,5.3114]
[1738862678176,22.70429012,190.57,190.54,13.41184853]
[1738862678373,22.70429012,190.57,190.53,5.3114]
[1738862678684,13.2329513,190.56,190.53,5.3114]
[1738862678885,14.7385513,190.57,190.53,5.3114]
[1738862679090,1.5056,190.57,190.53,5.3114]
[1738862679970,13.2329513,190.56,190.53,5.3114]
[1738862680584,13.2329513,190.56,190.53,0.063]
[1738862680781,21.1766491,190.54,190.53,0.063]
[1738862681873,27.2665491,190.56,190.53,0.063]
[1738862683292,6.0899,190.56,190.53,0.063]
[1738862685195,0.1246418,190.58,190.57,13.78831853]
[1738862685366,0.1246418,190.58,190.57,35.09045763]
[1738862686169,0.1246418,190.58,190.57,40.33785763]
[1738862687288,0.1246418,190.58,190.57,19.16120853]
[1738862688084,0.11366995,190.62,190.57,19.16120853]
[1738862688085,7.79750215,190.65,190.57,19.16120853]
[1738862688283,21.1766491,190.63,190.57,19.16120853]
[1738862688482,21.27597763,190.64,190.59,13.41184853]
[1738862688687,0.09932853,190.64,190.59,13.41184853]
[1738862688880,0.09932853,190.64,190.61,13.41184853]
[1738862690790,0.09932853,190.64,190.63,20.0]
[1738862690993,0.09932853,190.64,190.63,60.33615763]
[1738862692780,0.09932853,190.64,190.63,25.2457]
[1738862692979,0.09932853,190.64,190.62,5.246]
[1738862693300,21.38829996,190.64,190.59,5.2468]
[1738862693491,21.38829996,190.64,190.61,13.41184853]
[1738862693679,0.21165086,190.64,190.61,13.41184853]
[1738862693874,0.11232233,190.64,190.61,13.41184853]
[1738862694689,0.11232233,190.64,190.62,5.246]
[1738862696492,0.11232233,190.64,190.63,13.41184853]
[1738862696802,0.11232233,190.64,190.62,5.246]
[1738862696981,0.14232233,190.64,190.62,5.246]
[1738862697893,0.14232233,190.64,190.63,35.09045763]
[1738862698281,0.14232233,190.64,190.63,40.33615763]
[1738862700299,2.233e-05,190.64,190.63,41.1228462]
[1738862700680,2.233e-05,190.64,190.63,42.6466462]
[1738862700882,2.233e-05,190.64,190.63,34.67743971]
[1738862702176,2.233e-05,190.64,190.63,32.36695114]
[1738862704315,2.233e-05,190.64,190.63,33.1536173]
[1738862705204,2.233e-05,190.64,190.63,32.36695114]
[1738862706284,5.007e-05,190.65,190.64,13.91380853]
[1738862706885,0.01984249,190.67,190.66,0.50196]
[1738862707084,0.01984249,190.67,190.66,14.49587579]
[1738862707501,0.01984249,190.67,190.66,18.95430261]
[1738862707989,0.01984249,190.67,190.66,32.36615114]
[1738862708387,0.01984249,190.67,190.66,19.15870853]
[1738862708580,0.01984249,190.67,190.66,18.65674853]
[1738862710104,0.01984249,190.67,190.66,32.36615114]
[1738862712207,0.01984249,190.67,190.66,5.2449]
[1738862713208,0.12901803,190.67,190.66,5.2449]
[1738862713724,0.12901803,190.67,190.66,32.36615114]
[1738862713891,0.10917554,190.67,190.66,32.36615114]
[1738862714208,0.10917554,190.67,190.66,5.2449]
[1738862714710,13.31661815,190.67,190.64,5.2454]
[1738862714914,0.10917554,190.67,190.64,5.2454]
[1738862715087,0.10917554,190.67,190.66,33.91380853]
[1738862715290,7.554e-05,190.67,190.66,33.91380853]
[1738862715738,7.554e-05,190.67,190.66,47.12125114]
[1738862716396,7.554e-05,190.67,190.66,52.36615114]
[1738862716812,7.554e-05,190.67,190.66,38.65674853]
[1738862717013,7.554e-05,190.67,190.66,25.2449]
[1738862717310,7.554e-05,190.67,190.66,51.86419114]
[1738862717685,7.554e-05,190.67,190.66,25.2449]
[1738862718319,7.554e-05,190.67,190.66,38.65674853]
[1738862718888,7.554e-05,190.67,190.66,51.86419114]
[1738862719104,7.554e-05,190.67,190.66,52.36615114]
[1738862720893,7.554e-05,190.67,190.66,52.42915114]
[1738862721102,0.03007554,190.67,190.66,52.42915114]
[1738862721636,0.03007554,190.67,190.66,5.3079]
[1738862721915,19.28961815,190.67,190.66,0.063]
[1738862722097,6.08217554,190.67,190.66,5.3079]
[1738862722292,0.03007554,190.67,190.66,5.3079]
[1738862722496,0.03007554,190.67,190.66,0.063]
[1738862723497,13.23751815,190.67,190.66,0.063]
[1738862723999,14.23751815,190.67,190.66,0.063]
[1738862724695,13.23751815,190.67,190.66,0.063]
[1738862726525,14.23751815,190.67,190.66,0.063]
[1738862728218,0.03007554,190.67,190.66,20.063]
[1738862728439,0.03007554,190.67,190.66,0.063]
[1738862728719,0.03007554,190.67,190.66,26.68229114]
[1738862729229,0.03007554,190.67,190.66,13.47484853]
[1738862730314,0.03007554,190.67,190.66,18.71974853]
[1738862730628,0.03007554,190.67,190.66,5.3079]
[1738862730841,13.23751815,190.67,190.66,0.063]
[1738862731497,0.03007554,190.67,190.66,0.063]
[1738862731702,0.03007554,190.67,190.66,5.3079]
[1738862732310,0.03007554,190.67,190.66,0.063]
[1738862733122,0.12657483,190.67,190.66,0.063]
[1738862733539,7.483e-05,190.67,190.66,52.42915114]
[1738862733704,5.121e-05,190.68,190.67,0.50196]
[1738862734022,5.121e-05,190.68,190.67,13.70940261]
[1738862735698,5.121e-05,190.68,190.67,5.2446]
[1738862736103,5.121e-05,190.68,190.67,18.45204261]
[1738862736305,5.121e-05,190.68,190.67,32.36585114]
[1738862737729,0.0998976,190.69,190.68,15.41179732]